bitfinex/quotes_ETHUSD_20240816
["timestamp","ask_amount","ask_price","bid_price","bid_amount"]
[1723771051028,3.90132,2563.3,2562.9,1.0]
[1723771051166,3.90142,2563.2,2562.9,1.0]
[1723771051367,3.90167,2563.0,2562.9,1.0]
[1723771051820,3.90142,2563.2,2562.9,1.0]
[1723771052104,7.44,2563.4,2562.9,1.0]
[1723771052308,1.7290024,2563.6,2562.9,1.0]
[1723771052309,7.80334,2563.0,2562.9,1.0]
[1723771052506,11.70501,2563.0,2562.9,1.0]
[1723771052710,11.95614106,2563.0,2562.9,1.0]
[1723771053005,8.05447106,2563.0,2562.9,1.0]
[1723771053208,8.05447658,2563.0,2562.9,1.0]
[1723771053380,10.02672424,2563.0,2562.9,1.0]
[1723771054325,9.47672424,2563.0,2562.9,1.0]
[1723771054786,5.57505424,2563.0,2562.9,1.0]
[1723771055117,3.90159,2563.1,2562.9,1.0]
[1723771055302,3.90167,2563.0,2562.9,1.0]
[1723771055486,3.90142,2563.2,2562.9,1.0]
[1723771056085,3.90115,2563.4,2562.9,1.0]
[1723771056290,0.25113024,2563.3,2562.9,1.0]
[1723771056490,11.34083,2563.6,2563.0,2.3476]
[1723771056672,7.44,2563.8,2563.1,0.07802492]
[1723771056879,7.44,2563.8,2563.2,3.90128]
[1723771057130,11.34054,2563.8,2563.0,6.24918]
[1723771057424,0.25114182,2563.7,2563.3,35.0]
[1723771057717,7.44,2563.8,2563.4,2.292]
[1723771058790,11.74528465,2563.8,2563.3,35.0]
[1723771058988,4.15174468,2563.7,2563.3,35.0]
[1723771059286,11.74528465,2563.8,2563.3,35.0]
[1723771059287,3.90091,2563.5,2563.3,35.0]
[1723771059487,4.1522139,2563.4,2562.9,1.0]
[1723771059687,3.90142,2563.2,2562.9,1.0]
[1723771060176,5.07517847,2563.7,2562.9,1.0]
[1723771060177,7.80334,2563.0,2562.9,1.0]
[1723771060519,8.05447997,2563.0,2562.9,1.0]
[1723771062787,4.15280997,2563.0,2562.9,1.0]
[1723771063633,0.25113997,2563.0,2562.9,1.0]
[1723771063824,3.90128,2563.3,2562.9,1.0]
[1723771064054,0.25109416,2563.2,2562.9,1.0]
[1723771064259,3.90128,2563.3,2563.0,35.0]
[1723771064551,0.25110222,2563.2,2563.0,35.0]
[1723771064761,3.90098,2563.5,2563.0,35.0]
[1723771064964,0.25110526,2563.4,2563.0,35.0]
[1723771065416,3.90088,2563.6,2563.1,2.3886]
[1723771065610,0.25110668,2563.5,2563.1,2.3886]
[1723771066056,3.90088,2563.6,2563.2,35.0]
[1723771066355,3.90069,2563.7,2563.2,35.0]
[1723771066356,0.25100331,2563.5,2563.2,35.0]
[1723771066652,3.90069,2563.7,2563.2,35.0]
[1723771066878,0.25099541,2563.6,2563.2,38.90135]
[1723771067086,7.44,2564.0,2563.3,2.3886]
[1723771067382,4.15132165,2563.9,2563.3,2.3886]
[1723771067584,3.72180505,2564.3,2563.3,2.3886]
[1723771067585,0.25100165,2563.8,2563.3,2.3886]
[1723771067740,7.44,2564.6,2563.8,2.3886]
[1723771067942,3.89984,2564.3,2563.8,2.3886]
[1723771068143,4.15100509,2564.2,2563.8,2.3886]
[1723771068348,0.25105509,2564.1,2563.8,2.3886]
[1723771068581,0.25105509,2564.1,2563.9,35.0]
[1723771070385,1.0561396,2564.1,2562.8,0.94034109]
[1723771070595,3.1131,2564.5,2562.8,0.1247944]
[1723771070596,3.90167,2563.0,2562.8,0.1247944]
[1723771070887,3.90152,2563.1,2562.8,0.1247944]
[1723771071449,3.90167,2563.0,2562.8,0.1247944]
[1723771071650,0.2509902,2563.0,2562.8,0.1247944]
[1723771071971,3.9013,2563.3,2562.8,0.1247944]
[1723771072177,0.25098515,2563.2,2562.8,0.1247944]
[1723771072349,7.80334,2563.0,2562.8,0.1247944]
[1723771072681,3.90167,2563.0,2562.8,0.1247944]
[1723771073182,3.90145,2563.2,2562.8,0.1247944]
[1723771073391,3.90145,2563.2,2562.9,3.3422]
[1723771073978,4.15249375,2563.1,2562.9,3.3422]
[1723771074182,3.90065,2563.7,2562.9,3.3422]
[1723771074183,7.80267,2563.3,2562.9,3.3422]
[1723771074389,0.25094877,2563.2,2562.9,3.3422]
[1723771074691,0.25094877,2563.2,2562.9,6.24388]
[1723771074853,3.90092,2563.5,2562.9,2.3422]
[1723771075048,4.15207974,2563.4,2562.9,2.3422]
[1723771075385,3.90092,2563.5,2562.9,2.3422]
[1723771075584,3.90071,2563.7,2563.0,3.90165]
[1723771075791,3.9011,2563.4,2562.9,2.3422]
[1723771076789,3.90076,2563.6,2562.9,6.24402]
[1723771076966,0.25093645,2563.5,2562.9,6.24401]
[1723771077284,0.25093645,2563.5,2562.9,2.3422]
[1723771077789,7.80107,2563.8,2563.1,6.23842]
[1723771078021,3.90085,2563.6,2563.1,2.337]
[1723771078561,11.34004,2564.1,2563.1,2.337]
[1723771078562,3.90024,2564.0,2563.3,3.90112]
[1723771078775,0.25094125,2563.9,2563.3,3.90112]
[1723771078978,4.15134125,2563.9,2563.3,3.90112]
[1723771079178,3.90024,2564.0,2563.3,3.90112]
[1723771079179,0.25094125,2563.8,2563.5,2.337]
[1723771079383,7.44,2564.1,2563.5,6.23783]
[1723771079556,0.25093512,2564.0,2563.5,6.23782]
[1723771079761,7.44,2564.1,2563.5,6.23785]
[1723771079961,7.44,2564.1,2563.5,6.23783]
[1723771080207,0.25094642,2564.0,2563.6,35.0]
[1723771080371,23.66963,2564.4,2563.7,3.9005]
[1723771080559,0.25094314,2564.3,2563.8,2.337]
[1723771080753,0.25094314,2564.3,2563.8,6.23732]
[1723771080960,3.89962,2564.4,2563.9,35.0]
[1723771081159,3.89988,2564.2,2563.9,35.0]
[1723771081765,3.8997,2564.3,2563.9,35.0]
[1723771081975,3.89985,2564.2,2563.9,35.0]
[1723771082173,3.89959,2564.4,2563.9,35.0]
[1723771082398,0.25087842,2564.3,2563.9,35.0]
[1723771082703,3.89933,2564.6,2563.9,38.9002]
[1723771082871,3.89957,2564.4,2563.9,35.0]
[1723771083197,0.25098455,2564.3,2563.9,35.0]
[1723771083500,3.89933,2564.6,2564.0,6.23707]
[1723771083700,0.25100067,2564.5,2564.0,2.337]
[1723771084196,3.89986,2564.2,2564.1,35.0]
[1723771084397,4.15086067,2564.2,2564.1,35.0]
[1723771084604,3.89986,2564.2,2564.1,35.0]
[1723771084788,3.89959,2564.4,2564.1,35.0]
[1723771085098,0.25105051,2564.3,2564.1,35.0]
[1723771086807,3.89973,2564.3,2564.1,35.0]
[1723771087300,19.80078708,2564.9,2563.0,0.81554669]
[1723771087301,3.90137,2563.2,2563.0,0.81554669]
[1723771087459,3.90137,2563.2,2562.8,0.1247944]
[1723771087664,3.90137,2563.2,2562.9,35.0]
[1723771088203,3.90182,2562.9,2562.8,0.1247944]
[1723771088360,7.80364,2562.9,2562.8,0.1247944]
[1723771089335,11.95642652,2562.9,2562.8,0.1247944]
[1723771090380,8.05460652,2562.9,2562.8,0.1247944]
[1723771090580,4.15278652,2562.9,2562.8,0.1247944]
[1723771090811,3.90182,2562.9,2562.8,0.1247944]
[1723771091012,7.80364,2562.9,2562.8,0.1247944]
[1723771091219,8.44467614,2562.9,2562.8,0.1247944]
[1723771091581,12.34649614,2562.9,2562.8,0.1247944]
[1723771093306,8.44467614,2562.9,2562.8,0.1247944]
[1723771093630,4.15267414,2562.9,2562.8,0.1247944]
[1723771094120,8.05447903,2562.9,2562.8,0.1247944]
[1723771094830,22.07783903,2562.9,2562.8,4.4e-06]
[1723771095237,19.13092374,2562.9,2562.8,4.4e-06]
[1723771095541,11.70912,2562.1,2562.0,0.007269]
[1723771095848,7.80608,2562.1,2562.0,0.007269]
[1723771096017,2.1709,2562.4,2562.0,0.007269]
[1723771096018,3.90261,2562.4,2562.0,0.007269]
[1723771096197,3.90304,2562.1,2562.0,0.007269]
[1723771096392,3.90276,2562.3,2562.0,0.007269]
[1723771096596,7.80592,2562.2,2562.0,0.007269]
[1723771097028,7.8054,2562.4,2562.0,0.007269]
[1723771097214,7.8054,2562.4,2562.1,2.3024]
[1723771097215,3.90267,2562.4,2562.1,2.3024]
[1723771097427,3.90295,2562.2,2562.0,0.007269]
[1723771097598,3.90267,2562.4,2562.0,0.007269]
[1723771098148,3.90288,2562.3,2562.0,0.007269]
[1723771098436,3.9029,2562.2,2562.0,0.007269]
[1723771098621,3.90304,2562.1,2562.0,0.007269]
[1723771099357,8.586674,2562.1,2562.0,0.007269]
[1723771099499,7.80608,2562.1,2562.0,0.007269]
[1723771100547,3.90304,2562.1,2562.0,0.007269]
[1723771101957,7.80608,2562.1,2562.0,0.007269]
[1723771103913,3.90304,2562.1,2562.0,0.007269]
[1723771104455,7.44,2563.0,2562.1,2.4923]
[1723771104632,7.44,2563.0,2562.1,6.39526]
[1723771104846,3.90214,2562.7,2562.1,6.39524]
[1723771105045,3.90214,2562.7,2562.1,2.4923]
[1723771105444,3.90252,2562.5,2562.1,2.4923]
[1723771105667,3.90286,2562.3,2562.1,2.4923]
[1723771105868,3.90252,2562.5,2562.1,2.4923]
[1723771106044,3.90246,2562.5,2562.1,2.4923]
[1723771106249,3.9019,2562.9,2562.2,3.90279]
[1723771106458,7.261901,2562.9,2562.2,3.90279]
[1723771106687,3.9019,2562.9,2562.2,3.90279]
[1723771106979,7.44,2563.0,2562.1,2.4923]
[1723771106980,3.90207,2562.8,2562.1,2.4923]
[1723771107186,0.390114,2563.3,2562.5,2.4923]
[1723771107348,2.4883,2563.7,2562.7,3.90204]
[1723771107349,3.90119,2563.4,2562.7,3.90204]
[1723771107683,3.90119,2563.4,2562.8,3.90195]
[1723771107985,7.8017,2563.6,2562.8,3.90189]
[1723771108235,3.90082,2563.6,2563.0,2.4923]
[1723771108743,1.134035,2563.8,2563.0,2.4923]
[1723771108942,3.90084,2563.6,2563.0,6.39395]
[1723771109143,7.8017,2563.6,2563.0,6.39395]
[1723771109647,7.80171,2563.6,2563.0,6.39395]
[1723771110368,3.90084,2563.6,2563.0,10.2956]
[1723771110667,3.90084,2563.6,2562.0,0.82281569]
[1723771110668,3.90161,2563.1,2562.7,2.4923]
[1723771110845,7.80322,2563.1,2562.7,2.4923]
[1723771111039,3.90161,2563.1,2562.7,2.4923]
[1723771111266,7.80258,2563.3,2562.7,6.39435]
[1723771111583,3.90126,2563.3,2562.7,2.4923]
[1723771111779,3.90177,2563.0,2562.7,2.4923]
[1723771112015,3.90183,2562.9,2562.7,2.4923]
[1723771112281,0.390064,2563.6,2562.7,2.4923]
[1723771112282,3.90113,2563.4,2562.7,2.4923]
[1723771112453,3.90113,2563.4,2562.2,2.4923]
[1723771112454,3.90239,2562.6,2562.2,2.4923]
[1723771112843,7.80608,2562.1,2562.0,0.007269]
[1723771113291,3.90278,2562.3,2562.0,0.007269]
[1723771113292,3.90281,2562.3,2562.0,0.007269]
[1723771113584,3.90281,2562.3,2562.0,2.499569]
[1723771113748,3.90304,2562.1,2562.0,2.499569]
[1723771114243,3.90304,2562.1,2562.0,0.007269]
[1723771114584,3.90292,2562.2,2562.0,0.007269]
[1723771114957,3.90304,2562.1,2562.0,0.007269]
[1723771115380,3.90292,2562.2,2562.0,0.007269]
[1723771115381,7.80595,2562.2,2562.0,0.007269]
[1723771115584,3.9028,2562.3,2562.0,0.007269]
[1723771115756,3.9029,2562.2,2562.0,0.007269]
[1723771115965,3.90304,2562.1,2562.0,0.007269]
[1723771116856,3.9029,2562.2,2562.0,0.007269]
[1723771117772,0.390239,2562.5,2562.0,0.007269]
[1723771117773,7.80539,2562.4,2562.0,0.007269]
[1723771118091,4.15315131,2562.3,2562.0,0.007269]
[1723771118300,3.90274,2562.3,2562.0,0.007269]
[1723771118488,3.90292,2562.2,2562.0,0.007269]
[1723771118691,7.80594,2562.2,2562.0,0.007269]
[1723771118858,7.80591,2562.2,2562.0,0.007269]
[1723771119189,4.54398908,2562.1,2562.0,0.007269]
[1723771119398,0.64094908,2562.1,2562.0,0.007269]
[1723771119596,3.90292,2562.2,2562.0,0.007269]
[1723771119797,3.90304,2562.1,2562.0,0.007269]
[1723771120305,4.7222229,2562.4,2562.0,0.007269]
[1723771120613,10.10171511,2562.8,2562.0,0.007269]
[1723771120614,7.80589,2562.2,2562.0,0.007269]
[1723771120914,3.90304,2562.1,2562.0,0.007269]
[1723771122487,8.83713031,2562.1,2562.0,0.007269]
[1723771122805,8.05653631,2562.1,2562.0,0.007269]
[1723771123164,3.9026,2562.4,2562.0,2.444869]
[1723771123414,3.90249,2562.5,2562.0,2.444869]
[1723771123965,7.80502,2562.5,2562.0,2.444869]
[1723771124166,3.90249,2562.5,2562.0,2.444869]
[1723771125303,3.90222,2562.7,2562.1,3.90295]
[1723771125503,3.90262,2562.4,2562.0,2.444869]
[1723771125883,7.80608,2562.1,2562.0,0.007269]
[1723771126074,11.95971828,2562.1,2562.0,0.007269]
[1723771126275,9.62381106,2562.1,2562.0,0.007269]
[1723771127779,5.72077106,2562.1,2562.0,0.007269]
[1723771127968,4.15363828,2562.1,2562.0,0.007269]
[1723771128773,4.15359807,2562.1,2562.0,0.007269]
[1723771128968,0.25055807,2562.1,2562.0,0.007269]
[1723771129173,3.90282,2562.3,2562.0,0.007269]
[1723771129670,3.90248,2562.5,2562.0,0.007269]
[1723771129976,0.95669086,2562.5,2562.1,2.4774]
[1723771130177,0.25036543,2562.4,2562.1,2.4774]
[1723771130390,4.15295543,2562.4,2562.1,2.4774]
[1723771130622,3.90259,2562.4,2562.1,2.4774]
[1723771131570,0.95669086,2562.5,2562.1,2.4774]
[1723771131765,4.85915086,2562.5,2562.1,2.4774]
[1723771132108,0.95669086,2562.5,2562.1,2.4774]
[1723771132406,3.90245,2562.5,2562.1,2.4774]
[1723771132815,3.90231,2562.6,2562.1,2.4774]
[1723771133030,0.25031939,2562.5,2562.1,2.4774]
[1723771133178,4.15274939,2562.5,2562.1,2.4774]
[1723771133376,3.90249,2562.5,2562.1,2.4774]
[1723771133614,3.90231,2562.6,2562.1,2.4774]
[1723771135725,0.25015395,2562.5,2562.1,2.4774]
[1723771135915,7.80469,2562.6,2562.1,2.4774]
[1723771136285,3.90231,2562.6,2562.1,2.4774]
[1723771136623,0.25012968,2562.5,2562.1,2.4774]
[1723771136937,3.90275,2562.3,2562.1,2.4774]
[1723771137289,3.90253,2562.5,2562.1,2.4774]
[1723771137619,3.90259,2562.4,2562.1,2.4774]
[1723771138904,3.90259,2562.4,2561.3,1.63360654]
[1723771139221,3.90259,2562.4,2561.4,5.26113059]
[1723771139222,3.90313,2562.1,2561.4,5.26113059]
[1723771139384,3.9032,2562.0,2561.4,3.90402]
[1723771139587,3.90313,2562.1,2561.4,7.80802]
[1723771139899,3.90313,2562.1,2561.4,3.904]
[1723771140237,3.90282,2562.3,2561.6,3.9038]
[1723771140386,4.15306018,2562.2,2561.6,3.90372]
[1723771140587,3.90328,2562.0,2561.4,3.90407]
[1723771140828,8.05703163,2561.9,2561.0,0.81685122]
[1723771140999,3.90315,2562.1,2561.2,7.80866]
[1723771141204,3.90315,2562.1,2561.3,3.90425]
[1723771141205,3.90337,2561.9,2561.3,3.90425]
[1723771141739,3.90315,2562.1,2561.2,3.90428]
[1723771141740,3.90315,2562.1,2561.5,3.90391]
[1723771141886,0.25009579,2562.0,2561.5,2.385]
[1723771143166,0.25009579,2562.0,2561.6,3.90371]
[1723771143377,3.90301,2562.2,2561.6,3.90371]
[1723771143660,0.25013019,2562.1,2561.5,2.385]
[1723771143867,0.25013019,2562.1,2561.5,6.28895]
[1723771144072,0.25013019,2562.1,2561.7,3.9036]
[1723771144380,0.25013019,2562.0,2561.8,3.90347]
[1723771144671,3.90222,2562.7,2561.2,4.72123122]
[1723771144672,3.70614021,2562.6,2561.7,2.385]
[1723771144837,0.25018053,2562.5,2562.0,3.90311]
[1723771145042,0.25018053,2562.4,2562.1,3.90304]
[1723771145265,3.90221,2562.7,2562.1,3.90304]
[1723771145430,3.90221,2562.7,2561.8,2.385]
[1723771145431,3.90275,2562.3,2561.8,2.385]
[1723771145626,3.90257,2562.5,2561.9,3.90334]
[1723771145831,0.25013456,2562.4,2562.1,3.90304]
[1723771146066,3.9019,2562.9,2562.2,3.90289]
[1723771146263,0.25012828,2562.8,2562.3,3.9027]
[1723771146667,0.25012828,2562.7,2562.3,3.9027]
[1723771146841,0.25012828,2562.6,2562.3,3.9027]
[1723771147165,8.42364,2562.9,2562.3,3.9027]
[1723771147369,8.42364,2562.9,2562.1,7.80586]
[1723771147370,4.15210265,2562.8,2562.1,7.80586]
[1723771147543,0.25010265,2562.7,2562.1,7.80586]
[1723771147742,3.9019,2562.9,2562.3,3.90272]
[1723771148071,3.9019,2562.9,2562.0,2.4716]
[1723771148072,2.4449,2562.7,2562.0,0.81685122]
[1723771148278,4.15240989,2562.6,2561.9,3.90333]
[1723771148573,0.25007989,2562.5,2561.9,3.90325]
[1723771149129,4.15266989,2562.4,2561.8,2.4966]
[1723771149331,0.25007989,2562.3,2561.8,2.4966]
[1723771149567,0.25007989,2562.3,2561.8,6.40006]
[1723771149980,0.25007989,2562.3,2561.8,2.4966]
[1723771150166,7.80598,2562.2,2561.6,3.90372]
[1723771150367,7.80598,2562.2,2561.5,2.2503]
[1723771150368,3.90329,2562.0,2561.5,2.2503]
[1723771150569,3.90328,2562.0,2561.5,2.2503]
[1723771150744,0.24996545,2561.9,2561.2,2.2503]
[1723771150944,3.90392,2561.6,2561.2,2.2503]
[1723771151184,0.24995222,2561.5,2561.2,2.2503]
[1723771151390,3.90392,2561.6,2561.2,2.2503]
[1723771151391,3.9039,2561.6,2561.2,2.2503]
[1723771151555,3.9039,2561.6,2560.8,3.90493]
[1723771151556,0.24991012,2561.5,2560.9,3.90486]
[1723771151761,3.9039,2561.6,2560.9,3.90486]
[1723771151762,3.9039,2561.6,2560.9,6.19046]
[1723771151973,4.15389901,2561.5,2560.9,2.2856]
[1723771152175,3.90397,2561.5,2560.9,2.2856]
[1723771152351,3.90412,2561.4,2560.9,2.2856]
[1723771153761,3.9039,2561.6,2560.9,2.2856]
[1723771153968,0.24993814,2561.5,2561.0,3.90463]
[1723771154294,3.90376,2561.7,2561.0,3.90463]
[1723771154587,0.24999005,2561.6,2561.0,3.90463]
[1723771154798,7.80719,2561.8,2561.0,7.80923]
[1723771155003,0.25001025,2561.7,2561.1,3.90456]
[1723771155391,3.90397,2561.5,2560.9,2.2856]
[1723771155759,3.90373,2561.7,2560.9,2.2856]
[1723771155985,4.15385316,2561.6,2561.0,3.90463]
[1723771156186,0.25001316,2561.5,2561.0,3.90463]
[1723771156386,3.90396,2561.5,2560.9,2.2856]
[1723771156794,3.90396,2561.5,2560.9,6.19044]
[1723771158203,3.90474,2561.0,2560.3,0.7362186]
[1723771158365,3.90457,2561.1,2560.4,3.90555]
[1723771158566,3.90457,2561.1,2560.5,2.4596]
[1723771158775,3.90457,2561.1,2560.3,0.81757629]
[1723771158961,3.90472,2561.0,2560.4,1.35776335]
[1723771159187,3.90496,2560.9,2560.2,3.90585]
[1723771159396,2.3192,2560.9,2560.2,7.81168]
[1723771159589,6.846592,2560.9,2560.2,3.90582]
[1723771159907,6.846592,2560.9,2560.0,3.90616]
[1723771159908,3.90504,2560.8,2560.0,3.90616]
[1723771160107,3.90552,2560.5,2559.8,3.90646]
[1723771160314,0.6846592,2560.8,2559.6,2.03694218]
[1723771160609,3.90561,2560.5,2559.8,3.90641]
[1723771160950,3.90547,2560.6,2559.9,0.07811615]
[1723771160951,3.90542,2560.6,2559.9,0.07811615]
[1723771161087,0.390547,2560.5,2559.9,3.90633]
[1723771161410,3.90543,2560.6,2559.8,3.90646]
[1723771162067,3.90557,2560.5,2559.8,3.90646]
[1723771162269,3.90566,2560.4,2559.7,3.90659]
[1723771162691,4.525103,2560.6,2559.8,7.81308]
[1723771163012,2.2913,2560.7,2560.0,3.90624]
[1723771163205,6.1966,2560.7,2560.0,3.90624]
[1723771163512,3.90535,2560.6,2559.8,7.81288]
[1723771163807,7.81079,2560.6,2559.8,3.90642]
[1723771163970,3.90548,2560.5,2559.8,3.90642]
[1723771164611,3.90535,2560.6,2559.8,3.90642]
[1723771164819,7.81078,2560.6,2559.8,3.90642]
[1723771165189,3.9055,2560.5,2559.8,3.90642]
[1723771165520,8.9220148,2560.6,2559.8,3.90642]
[1723771165710,5.0165748,2560.6,2559.8,3.90642]
[1723771166283,3.90548,2560.5,2559.8,3.90642]
[1723771166519,5.02681548,2560.5,2559.8,3.90642]
[1723771166912,1.12133548,2560.5,2559.8,7.81288]
[1723771167098,3.90535,2560.6,2559.9,3.90632]
[1723771167506,3.90512,2560.8,2560.1,3.90609]
[1723771167813,0.390512,2560.8,2560.2,3.90584]
[1723771168026,0.390512,2560.8,2560.2,3.98394247]
[1723771168225,0.390512,2560.8,2560.2,3.90584]
[1723771168492,0.2768412,2560.7,2560.1,7.8121]
[1723771168635,2.2725,2560.7,2560.1,3.90601]
[1723771168944,2.2725,2560.7,2560.1,3.906]
[1723771169835,2.2725,2560.7,2560.2,3.90593]
[1723771171132,6.18491,2561.0,2560.4,3.90562]
[1723771171356,2.2801,2561.0,2560.4,3.90555]
[1723771171561,0.618467,2560.9,2560.2,3.90582]
[1723771171847,3.90505,2560.8,2560.2,3.90582]
[1723771172163,3.90505,2560.8,2560.1,3.90609]
[1723771172367,4.914039,2560.8,2560.1,3.90609]
[1723771172570,4.914039,2560.8,2560.0,3.90614]
[1723771173367,4.914039,2560.8,2560.1,3.90597]
[1723771173724,1.008989,2560.8,2560.2,3.90589]
[1723771173916,1.008989,2560.8,2560.3,3.90576]
[1723771174523,6.18492,2561.0,2560.3,3.90576]
[1723771174833,6.18492,2561.0,2560.4,3.90563]
[1723771174834,6.18491,2561.0,2560.4,3.90563]
[1723771175248,6.18491,2561.0,2560.3,3.90576]
[1723771175249,6.1849,2561.0,2560.3,3.90576]
[1723771175449,8.267139,2561.0,2560.3,7.81139]
[1723771175649,8.267139,2561.0,2560.3,7.8114]
[1723771175997,4.362339,2561.0,2560.5,35.0]
[1723771176279,11.34449,2561.2,2560.5,42.81084]
[1723771176578,19.77,2561.4,2560.7,3.90503]
[1723771176723,0.780769,2561.5,2560.8,3.90495]
[1723771176724,3.90397,2561.5,2560.8,3.90495]
[1723771176918,5.3638709,2561.5,2560.8,3.90495]
[1723771177822,1.4599009,2561.5,2560.9,3.90484]
[1723771178025,2.4743,2561.6,2561.0,3.90468]
[1723771178228,3.90396,2561.5,2560.7,3.90506]
[1723771178450,3.90401,2561.5,2560.8,3.9049]
[1723771178618,5.8473414,2561.5,2560.8,3.9049]
[1723771179523,1.9433314,2561.5,2560.8,3.9049]
[1723771179777,1.9433314,2561.5,2560.9,3.90484]
[1723771179955,6.37819,2561.6,2560.9,3.90484]
[1723771180464,0.24990739,2561.5,2560.9,3.90484]
[1723771180664,6.37819,2561.6,2560.9,3.90484]
[1723771182861,10.28209,2561.6,2560.9,3.90484]
[1723771183164,8.479699,2561.6,2561.0,3.90469]
[1723771183328,4.575809,2561.6,2561.0,3.90469]
[1723771183544,2.101509,2561.6,2561.0,3.90469]
[1723771184683,26.96607,2562.1,2561.5,3.90396]
[1723771184684,27.21,2562.1,2561.5,3.90396]
[1723771184846,6.18678,2562.2,2561.5,3.90396]
[1723771185051,1.836678,2562.1,2561.6,35.0]
[1723771185272,19.62,2562.3,2561.6,38.90377]
[1723771185582,3.90332,2562.0,2561.6,35.0]
[1723771185758,3.90312,2562.1,2561.6,35.0]
[1723771185759,0.780644,2561.9,2561.6,35.0]
[1723771185958,3.90312,2562.1,2561.6,35.0]
[1723771186289,2.4712,2562.0,2561.6,35.0]
[1723771186487,3.90312,2562.1,2561.6,35.0]
[1723771186794,27.42569,2562.3,2561.6,35.0]
[1723771186953,2.681582,2562.2,2561.6,35.0]
[1723771187149,6.584502,2562.2,2561.6,35.0]
[1723771187387,2.681582,2562.2,2561.6,38.90376]
[1723771188293,2.681582,2562.2,2561.6,35.0]
[1723771188461,2.6204402,2562.1,2561.6,35.0]
[1723771189560,15.24568,2562.3,2561.6,35.0]
[1723771189761,11.34282,2562.3,2561.6,38.90371]
[1723771190785,3.90289,2562.2,2561.6,35.0]
[1723771190994,5.674581,2562.2,2561.6,35.0]
[1723771192179,1.771691,2562.2,2561.6,35.0]
[1723771192485,5.674671,2562.2,2561.6,35.0]
[1723771193052,3.90306,2562.1,2561.6,35.0]
[1723771194191,1.771691,2562.2,2561.6,35.0]
[1723771194400,3.90365,2561.7,2561.1,2.428]
[1723771194893,3.90365,2561.7,2561.2,35.0]
[1723771195254,7.80739,2561.7,2561.2,35.0]
[1723771195455,3.90365,2561.7,2561.2,35.0]
[1723771196255,3.90344,2561.9,2561.2,38.90432]
[1723771196256,7.80692,2561.9,2561.2,38.90432]
[1723771196451,3.90366,2561.7,2561.2,35.0]
[1723771197404,3.90387,2561.6,2561.2,35.0]
[1723771197613,3.90387,2561.6,2560.7,3.90512]
[1723771197614,3.9043,2561.3,2560.7,3.90512]
[1723771197813,3.90423,2561.4,2560.7,7.81022]
[1723771198106,3.90423,2561.4,2560.8,35.0]
[1723771198255,3.90435,2561.3,2560.8,35.0]
[1723771198637,3.9045,2561.2,2560.8,35.0]
[1723771198934,5.012342,2561.4,2560.8,35.0]
[1723771199086,0.5012342,2561.3,2560.8,35.0]
[1723771199484,4.4055142,2561.3,2560.8,35.0]
[1723771199734,3.9045,2561.2,2560.8,35.0]
[1723771199903,3.90482,2561.0,2560.1,3.2206]
[1723771200108,3.90491,2560.9,2560.1,7.12655]
[1723771200309,3.90527,2560.7,2560.1,3.2206]
[1723771200528,3.90497,2560.9,2560.2,35.0]
[1723771200703,3.90498,2560.9,2560.2,35.0]
[1723771200916,3.90505,2560.8,2560.2,35.0]
[1723771201445,4.737486,2560.9,2559.5,1.2941977]
[1723771201446,3.429,2560.6,2559.5,7.55055141]
[1723771201736,3.90637,2560.0,2559.1,3.90751]
[1723771202055,3.429,2560.3,2559.4,3.167]
[1723771202194,3.90579,2560.3,2559.4,3.167]
[1723771202397,3.90634,2560.0,2559.4,3.167]
[1723771202617,3.90603,2560.2,2559.4,7.07413]
[1723771202819,3.90569,2560.4,2559.6,7.81359]
[1723771203017,3.90569,2560.4,2559.6,3.90676]
[1723771203222,4.68618186,2560.6,2559.8,3.90653]
[1723771203632,4.68618186,2560.6,2559.8,3.90646]
[1723771203797,4.68618186,2560.6,2559.9,38.90631]
[1723771204150,4.68618186,2560.6,2559.9,35.0]
[1723771204327,0.78078186,2560.6,2559.9,35.0]
[1723771205037,4.3788586,2560.8,2560.1,3.90599]
[1723771205200,8.2840286,2560.8,2560.0,7.20385]
[1723771205402,4.3788586,2560.8,2560.0,7.20385]
[1723771205697,0.43788586,2560.7,2560.2,35.0]
[1723771205945,4.34311586,2560.7,2560.2,35.0]
[1723771206301,3.90533,2560.6,2560.2,35.0]
[1723771206544,0.43788586,2560.7,2560.2,35.0]
[1723771207331,4.34313586,2560.7,2560.2,35.0]
[1723771207539,0.43788586,2560.7,2560.2,35.0]
[1723771207702,4.3788586,2560.8,2560.2,35.0]
[1723771208413,14.6247,2561.0,2560.2,42.81173]
[1723771208624,14.6247,2561.0,2560.2,38.90584]
[1723771208625,18.52955,2561.0,2560.2,38.90584]
[1723771208813,14.6247,2561.0,2560.2,38.90584]
[1723771209013,11.3448,2561.0,2560.2,38.90583]
[1723771209217,11.3448,2561.0,2560.2,35.0]
[1723771209218,12.869729,2561.0,2560.2,35.0]
[1723771209444,3.90493,2560.9,2560.2,35.0]
[1723771210044,3.90493,2560.9,2560.2,38.90592]
[1723771210213,12.869729,2561.0,2560.2,42.81173]
[1723771210415,12.869729,2561.0,2560.4,3.90563]
[1723771211052,12.869729,2561.0,2560.2,38.90581]
[1723771211336,12.869729,2561.0,2560.3,3.90575]
[1723771212052,12.869729,2561.0,2560.2,38.90581]
[1723771212053,1.2869729,2560.9,2560.2,35.0]
[1723771212254,3.90553,2560.5,2560.2,35.0]